bitfinex-derivatives/quotes_BTCF0:USTF0_20241125
["timestamp","ask_amount","ask_price","bid_price","bid_amount"]
[1732577552004,0.0319,93582.0,93581.0,0.17736]
[1732577552502,0.001,93599.0,93590.0,0.053427]
[1732577552707,0.053424,93595.0,93590.0,0.053427]
[1732577553106,0.053424,93595.0,93592.0,0.053426]
[1732577553306,0.0319,93598.0,93595.0,0.053424]
[1732577553811,0.0319,93598.0,93592.0,0.17736]
[1732577554006,0.053424,93595.0,93592.0,0.17736]
[1732577554509,0.053424,93595.0,93581.0,0.36939213]
[1732577554704,0.0319,93598.0,93583.0,0.053431]
[1732577554908,0.053427,93591.0,93588.0,0.053428]
[1732577555108,0.053427,93591.0,93589.0,0.17736]
[1732577556112,0.053423,93597.0,93568.0,0.0027]
[1732577556309,0.053429,93587.0,93581.0,0.053432]
[1732577556503,0.12841108,93598.0,93582.0,0.17736]
[1732577556709,0.053431,93584.0,93582.0,0.17736]
[1732577557015,0.053431,93584.0,93583.0,0.17736]
[1732577557212,0.0319,93598.0,93583.0,0.17736]
[1732577557213,0.053427,93591.0,93583.0,0.17736]
[1732577557515,0.053427,93591.0,93587.0,0.053428]
[1732577557906,0.053427,93591.0,93583.0,0.17736]
[1732577557907,0.003,93591.0,93583.0,0.17736]
[1732577558107,0.003,93591.0,93583.0,0.18595556]
[1732577558412,0.053427,93591.0,93589.0,0.053427]
[1732577558606,0.0319,93598.0,93590.0,0.17736]
[1732577559007,0.0319,93598.0,93596.0,0.053423]
[1732577559606,0.0329,93598.0,93596.0,0.053423]
[1732577560310,0.0339,93598.0,93596.0,0.053423]
[1732577561105,0.053426,93592.0,93590.0,0.17736]
[1732577562207,0.053426,93592.0,93590.0,0.17836]
[1732577562513,0.09551108,93591.0,93590.0,0.17836]
[1732577563017,0.14893708,93592.0,93590.0,0.17736]
[1732577563216,0.053426,93592.0,93590.0,0.17736]
[1732577563519,0.053426,93592.0,93590.0,0.19191097]
[1732577563707,0.053426,93592.0,93591.0,0.17736]
[1732577564113,0.00860102,93595.0,93588.0,0.17736]
[1732577564314,0.053427,93589.0,93588.0,0.17736]
[1732577564808,0.053427,93589.0,93584.0,0.19210447]
[1732577565015,0.002,93592.0,93584.0,0.17736]
[1732577565016,0.05343,93585.0,93584.0,0.17736]
[1732577565208,0.003,93592.0,93591.0,0.053426]
[1732577565414,0.003,93592.0,93591.0,0.230786]
[1732577565625,0.15946311,93596.0,93594.0,0.053424]
[1732577565820,0.15946311,93596.0,93591.0,0.17736]
[1732577565821,0.60710511,93598.0,93595.0,0.053424]
[1732577566021,0.446122,93598.0,93595.0,0.053424]
[1732577566916,0.446122,93598.0,93596.0,0.053423]
[1732577568316,0.449122,93598.0,93596.0,0.053423]
[1732577569310,0.003,93598.0,93596.0,0.6063426]
[1732577569516,0.3608,93617.0,93596.0,0.6063426]
[1732577569517,0.15946311,93607.0,93597.0,0.32052]
[1732577569716,0.15946311,93607.0,93596.0,0.714223]
[1732577569717,0.15946311,93614.0,93605.0,0.55290019]
[1732577569922,0.36945842,93617.0,93610.0,0.19210019]
[1732577570125,0.36945842,93617.0,93615.0,0.053413]
[1732577571122,0.3608,93617.0,93615.0,0.053413]
[1732577571418,0.05341,93619.0,93616.0,0.053412]
[1732577571623,0.05341,93619.0,93617.0,0.053411]
[1732577571819,0.05341,93619.0,93618.0,0.17732]
[1732577572011,0.06254766,93619.0,93618.0,0.17732]
[1732577572612,0.07118616,93619.0,93618.0,0.17732]
[1732577573020,0.0630485,93619.0,93618.0,0.17732]
[1732577573420,0.09657175,93619.0,93618.0,0.17732]
[1732577573624,0.001,93619.0,93618.0,0.17732]
[1732577573921,0.09657175,93619.0,93618.0,0.17732]
[1732577574230,0.1059288,93619.0,93618.0,0.17732]
[1732577574438,0.053413,93614.0,93613.0,0.3608]
[1732577574724,0.053413,93614.0,93599.0,0.3157676]
[1732577574725,0.00935705,93614.0,93597.0,0.19210019]
[1732577574927,0.00935705,93614.0,93594.0,0.17732]
[1732577574928,0.09552777,93599.0,93594.0,0.17732]
[1732577575127,0.053424,93595.0,93594.0,0.17732]
[1732577576624,0.053424,93595.0,93594.0,0.17832]
[1732577576824,0.064,93598.0,93595.0,0.053424]
[1732577577016,0.064,93598.0,93597.0,0.053423]
[1732577577428,0.064,93598.0,93594.0,0.17832]
[1732577577627,0.053424,93595.0,93594.0,0.17832]
[1732577577826,0.14893969,93595.0,93594.0,0.17832]
[1732577578025,0.14893969,93595.0,93593.0,0.62636]
[1732577578328,0.053424,93595.0,93593.0,0.62636]
[1732577578722,0.053424,93595.0,93594.0,0.002]
[1732577578923,0.14893969,93595.0,93594.0,0.002]
[1732577579118,0.15093969,93595.0,93593.0,0.62636]
[1732577579323,0.09551569,93594.0,93593.0,0.62636]
[1732577579518,0.15393969,93595.0,93593.0,0.62636]
[1732577579829,0.15293969,93595.0,93593.0,0.62636]
[1732577580126,0.004,93595.0,93593.0,0.679785]
[1732577580524,0.004,93595.0,93593.0,0.502465]
[1732577580719,0.054424,93595.0,93594.0,0.1772]
[1732577580926,0.004,93595.0,93594.0,0.1772]
[1732577581531,0.001,93595.0,93594.0,0.1772]
[1732577581725,0.0313,93598.0,93597.0,0.053423]
[1732577582435,0.12681569,93598.0,93594.0,0.1772]
[1732577582634,0.053424,93595.0,93594.0,0.1782]
[1732577583126,0.37072612,93607.0,93594.0,0.85952]
[1732577583127,0.09561453,93604.0,93594.0,0.85952]
[1732577583331,0.09562113,93607.0,93606.0,0.053418]
[1732577583526,0.0314,93616.0,93609.0,0.053416]
[1732577583726,0.09563242,93614.0,93597.0,0.1782]
[1732577583939,0.053422,93598.0,93597.0,0.1782]
[1732577584325,0.15946311,93607.0,93597.0,0.1782]
[1732577584326,0.05342,93603.0,93597.0,0.001]
[1732577584529,0.09561583,93603.0,93601.0,0.053421]
[1732577584728,0.09561583,93606.0,93598.0,0.538]
[1732577584933,0.09561583,93611.0,93610.0,0.053416]
[1732577585133,0.0308,93612.0,93610.0,0.053416]
[1732577585431,0.14902326,93612.0,93611.0,0.1772]
[1732577585630,0.053414,93612.0,93611.0,0.1772]
[1732577586427,0.057414,93612.0,93611.0,0.1772]
[1732577587235,0.013,93612.0,93611.0,0.1772]
[1732577587434,0.10857353,93612.0,93611.0,0.1772]
[1732577587628,0.004,93612.0,93611.0,0.1772]
[1732577587938,0.014,93612.0,93611.0,0.1782]
[1732577588338,0.10957353,93612.0,93611.0,0.1782]
[1732577589835,0.014,93612.0,93611.0,0.1782]
[1732577590132,0.053419,93604.0,93598.0,0.06205559]
[1732577590328,0.053419,93604.0,93599.0,0.053421]
[1732577590632,0.09556583,93605.0,93593.0,0.502465]
[1732577590837,0.053423,93598.0,93594.0,0.053424]
[1732577591225,0.0307,93603.0,93593.0,0.44904]
[1732577591226,0.09556583,93601.0,93596.0,0.053423]
[1732577591432,0.0307,93603.0,93600.0,0.053421]
[1732577591433,0.09556583,93602.0,93600.0,0.053421]
[1732577591632,0.0307,93603.0,93602.0,0.05342]
[1732577593736,0.12626583,93603.0,93602.0,0.05342]
[1732577593938,0.13426583,93603.0,93602.0,0.05342]
[1732577594440,0.13420961,93603.0,93598.0,0.1772]
[1732577594638,0.053421,93601.0,93598.0,0.1772]
[1732577595039,0.14893061,93601.0,93598.0,0.1772]
[1732577595237,0.09550961,93600.0,93598.0,0.1772]
[1732577595737,0.09550961,93599.0,93598.0,0.230622]
[1732577595941,0.09550961,93600.0,93598.0,0.230622]
[1732577596539,0.12734705,93600.0,93593.0,0.45778227]
[1732577596741,0.05343,93585.0,93584.0,0.19177443]
[1732577596936,0.05343,93585.0,93571.0,0.8098]
[1732577596937,0.053434,93578.0,93577.0,0.19177443]
[1732577597138,0.3608,93579.0,93561.0,0.19177443]
[1732577597339,0.053444,93560.0,93559.0,0.19177443]
[1732577597640,0.14895448,93561.0,93556.0,0.3608]
[1732577597833,0.053445,93558.0,93556.0,0.3608]
[1732577598030,0.053445,93558.0,93557.0,0.19177443]
[1732577598230,0.053445,93558.0,93556.0,0.3608]
[1732577598542,0.3608,93557.0,93548.0,0.19177443]
[1732577598839,0.3608,93557.0,93543.0,0.19177443]
[1732577599036,0.053452,93547.0,93543.0,0.24522743]
[1732577599238,0.053452,93547.0,93543.0,0.053453]
[1732577599934,0.053452,93547.0,93545.0,0.002]
[1732577600532,0.053452,93547.0,93546.0,0.3608]
[1732577601839,0.053452,93547.0,93546.0,0.3618]
[1732577602251,0.04105847,93559.0,93556.0,0.053446]
[1732577602438,0.0324,93559.0,93557.0,0.053446]
[1732577602638,0.053446,93557.0,93554.0,0.053447]
[1732577603135,0.0324,93559.0,93551.0,0.17728]
[1732577603339,0.053448,93554.0,93551.0,0.17728]
[1732577603539,0.053448,93554.0,93551.0,0.230729]
[1732577603942,0.053448,93554.0,93551.0,0.053449]
[1732577604141,0.053448,93554.0,93551.0,0.055449]
[1732577604347,0.053448,93554.0,93551.0,0.056449]
[1732577604652,0.053447,93556.0,93555.0,0.053447]
[1732577606250,0.053447,93556.0,93555.0,0.055447]
[1732577606757,0.0324,93559.0,93555.0,0.002]
[1732577607042,0.0324,93559.0,93557.0,0.053445]
[1732577607043,0.085845,93559.0,93557.0,0.053445]
[1732577607669,0.053446,93556.0,93555.0,0.003]
[1732577608671,0.0324,93559.0,93545.0,0.053452]
[1732577608971,0.05345,93550.0,93545.0,0.053452]
[1732577610062,0.05345,93550.0,93545.0,0.414252]
[1732577610264,0.05345,93550.0,93545.0,0.415252]
[1732577610563,0.05345,93550.0,93548.0,0.053451]
[1732577610851,0.0324,93559.0,93551.0,0.053449]
[1732577610852,0.053446,93556.0,93551.0,0.053449]
[1732577611056,0.0324,93559.0,93545.0,0.3628]
[1732577611248,0.0324,93559.0,93545.0,0.3638]
[1732577611449,0.0324,93559.0,93551.0,0.053449]
[1732577611450,0.053445,93558.0,93551.0,0.053449]
[1732577611652,0.0324,93559.0,93551.0,0.053449]
[1732577611653,0.053448,93554.0,93551.0,0.053449]
[1732577611851,0.053448,93554.0,93552.0,0.053449]
[1732577612741,0.053449,93552.0,93551.0,0.003]
[1732577612947,0.053449,93552.0,93537.0,0.538]
[1732577612948,0.053456,93539.0,93537.0,0.538]
[1732577613549,0.053456,93539.0,93537.0,0.3608]
[1732577613955,0.0301,93538.0,93537.0,0.3608]
[1732577614650,0.0301,93538.0,93537.0,0.3618]
[1732577615240,0.0301,93538.0,93537.0,0.3638]
[1732577616052,0.0608,93538.0,93537.0,0.3638]
[1732577616254,0.0307,93538.0,93537.0,0.3638]
[1732577616757,0.0307,93538.0,93537.0,0.3628]
[1732577617156,0.3608,93552.0,93537.0,0.3628]
[1732577617350,0.09551048,93568.0,93551.0,0.053449]
[1732577617351,0.0318,93553.0,93551.0,0.053449]
[1732577618158,0.0318,93553.0,93551.0,0.230649]
[1732577618454,0.0368,93553.0,93551.0,0.230649]
[1732577619452,0.0318,93553.0,93551.0,0.230649]
[1732577619755,0.053449,93552.0,93551.0,0.002]
[1732577621047,0.053449,93552.0,93547.0,0.053451]
[1732577621355,0.0348,93553.0,93551.0,0.055449]
[1732577621554,0.001,93552.0,93551.0,0.055449]
[1732577621860,0.002,93552.0,93551.0,0.053449]
[1732577622050,0.002,93552.0,93546.0,0.3608]
[1732577622051,0.053449,93551.0,93546.0,0.3608]
[1732577622451,0.053449,93551.0,93546.0,0.414252]
[1732577622647,0.053451,93547.0,93546.0,0.3608]
[1732577622854,0.053451,93547.0,93541.0,0.1772]
[1732577623056,0.053451,93547.0,93542.0,0.053454]
[1732577623255,0.053453,93545.0,93542.0,0.053454]
[1732577623454,0.053453,93545.0,93543.0,0.053453]
[1732577623655,0.053453,93545.0,93543.0,0.230653]
[1732577624659,0.054453,93545.0,93543.0,0.230653]
[1732577625358,0.001,93545.0,93540.0,0.36897443]
[1732577625553,0.053454,93543.0,93541.0,0.19177443]
[1732577625754,0.053454,93543.0,93539.0,0.19177443]
[1732577625956,0.002,93545.0,93544.0,0.053453]
[1732577626359,0.053453,93544.0,93543.0,0.1772]
[1732577626555,0.053453,93544.0,93543.0,0.36931173]
[1732577626964,0.053453,93544.0,93543.0,0.1772]
[1732577627162,0.053455,93541.0,93539.0,0.19211173]
[1732577627465,0.1273473,93542.0,93538.0,0.19217354]
[1732577627664,0.053455,93540.0,93538.0,0.14217354]
[1732577627861,0.053457,93538.0,93537.0,0.3608]
[1732577628051,0.1808043,93538.0,93537.0,0.3608]
[1732577628456,0.053457,93538.0,93537.0,0.3608]
[1732577629564,0.053457,93538.0,93537.0,0.3628]
[1732577631561,0.00846457,93538.0,93537.0,0.3628]
[1732577631753,0.09508639,93538.0,93537.0,0.3628]
[1732577631959,0.02138823,93545.0,93540.0,0.053455]
[1732577631960,0.09508639,93542.0,93540.0,0.053455]
[1732577632361,0.09508639,93543.0,93537.0,0.3628]
[1732577632559,0.09508639,93539.0,93537.0,0.3628]
[1732577632755,0.09508639,93538.0,93537.0,0.3628]
[1732577633167,0.053457,93539.0,93537.0,0.3628]
[1732577633358,0.053457,93539.0,93537.0,0.3608]
[1732577633559,0.053457,93539.0,93537.0,0.3628]
[1732577634159,0.053457,93539.0,93537.0,0.416257]
[1732577634565,0.053457,93539.0,93537.0,0.3628]
[1732577634767,0.053463,93527.0,93526.0,0.3608]
[1732577634961,0.053463,93527.0,93526.0,0.2108]
[1732577634962,0.230703,93527.0,93526.0,0.2108]
[1732577635266,0.053463,93527.0,93526.0,0.2108]
[1732577635573,0.374223,93527.0,93526.0,0.2108]
[1732577636164,0.053463,93527.0,93526.0,0.2108]
[1732577636762,0.053463,93527.0,93526.0,0.2128]
[1732577636959,0.053463,93527.0,93526.0,0.2138]
[1732577637672,0.053463,93527.0,93526.0,0.2128]
[1732577638959,0.414263,93527.0,93526.0,0.002]
[1732577639567,0.735023,93527.0,93513.0,0.2558713]
[1732577639872,0.053471,93513.0,93512.0,5.431e-05]
[1732577640060,0.83014498,93513.0,93501.0,0.0307]
[1732577640261,0.414277,93502.0,93500.0,0.1103]
[1732577640566,0.17724,93501.0,93500.0,0.1103]
[1732577640770,0.49808,93501.0,93500.0,0.1103]
[1732577641357,0.54251855,93502.0,93500.0,0.1103]
[1732577641358,0.45719827,93502.0,93500.0,0.1103]
[1732577641565,0.00865521,93505.0,93500.0,0.1103]
[1732577641769,0.02139037,93513.0,93512.0,0.053471]
[1732577642265,0.38219037,93513.0,93512.0,0.053471]
[1732577642861,0.38619037,93513.0,93512.0,0.053471]
[1732577643473,0.38619037,93513.0,93501.0,0.0314]
[1732577643671,0.38619037,93513.0,93512.0,0.053471]
[1732577644368,0.38219037,93513.0,93512.0,0.056471]
[1732577645075,0.38219037,93513.0,93512.0,0.055471]
[1732577645572,0.38163944,93513.0,93512.0,0.055471]
[1732577646871,0.38163944,93513.0,93512.0,0.056471]
[1732577648068,0.38163944,93513.0,93512.0,0.055471]
[1732577648273,0.38163944,93513.0,93512.0,0.056471]
[1732577648670,0.38163944,93513.0,93512.0,0.054471]
[1732577648963,9e-07,93518.0,93517.0,0.053469]
[1732577649169,9e-07,93518.0,93512.0,0.594391]
[1732577649170,0.0027,93544.0,93529.0,0.053461]
[1732577649363,0.0027,93544.0,93525.0,0.053464]
[1732577649364,0.09491827,93551.0,93550.0,0.05345]
[1732577649570,0.09491827,93552.0,93550.0,0.05345]
[1732577649766,0.09491827,93552.0,93541.0,0.17712]
[1732577649767,0.09491827,93554.0,93552.0,0.053448]
[1732577650072,0.09491827,93553.0,93552.0,0.053448]
[1732577650276,0.12676155,93560.0,93552.0,0.053448]
[1732577650277,0.09491827,93565.0,93553.0,7.99e-05]
[1732577650574,0.3608,93577.0,93576.0,0.053435]
[1732577650774,0.09491506,93577.0,93576.0,0.053435]
[1732577650975,0.46412824,93577.0,93576.0,0.053435]
[1732577651273,0.00841318,93577.0,93576.0,0.053435]
[1732577651475,0.02139513,93578.0,93576.0,0.053435]
[1732577651675,0.10291634,93577.0,93576.0,0.054435]
[1732577651864,0.008,93577.0,93576.0,0.054435]
[1732577652764,0.3728,93577.0,93576.0,0.001]
[1732577654271,0.426234,93577.0,93576.0,0.001]
[1732577654471,0.426234,93577.0,93542.0,0.3608]
[1732577654472,0.6934,93577.0,93552.0,0.053449]
[1732577654765,0.053447,93554.0,93548.0,0.0027]
[1732577654971,0.374127,93554.0,93533.0,0.053459]
[1732577655169,0.404627,93554.0,93533.0,0.053459]
[1732577655371,0.404627,93554.0,93531.0,0.0027]
[1732577655585,0.404627,93554.0,93535.0,0.053458]
[1732577656080,0.083947,93554.0,93535.0,0.053458]
[1732577656275,0.404627,93554.0,93535.0,0.053458]
[1732577656666,0.408627,93554.0,93535.0,0.053458]
[1732577656870,0.408627,93554.0,93531.0,0.0027]
[1732577656871,0.35518,93554.0,93531.0,0.0027]
[1732577657071,0.3608,93541.0,93532.0,0.05346]
[1732577657473,0.3608,93541.0,93514.0,0.25827155]
[1732577657474,0.3608,93541.0,93524.0,0.00860991]
[1732577657683,0.09657251,93554.0,93509.0,0.3608]
[1732577657684,0.3608,93525.0,93511.0,0.18554311]
[1732577657975,0.053465,93524.0,93514.0,0.05347]
[1732577658174,0.053465,93524.0,93515.0,0.05347]
[1732577658777,0.3608,93525.0,93511.0,0.17708]
[1732577658778,0.053467,93521.0,93511.0,0.17708]
[1732577658980,0.053467,93521.0,93513.0,0.053471]
[1732577659278,0.3608,93525.0,93515.0,0.05347]
[1732577659479,0.414265,93525.0,93515.0,0.05347]
[1732577659675,0.36919351,93525.0,93518.0,0.053468]
[1732577659878,0.36919351,93525.0,93515.0,0.002]
[1732577660271,0.36919351,93525.0,93504.0,0.45802306]
[1732577660272,0.053467,93520.0,93513.0,0.053471]
[1732577660478,0.36919351,93525.0,93515.0,0.002]
[1732577660976,0.001,93521.0,93515.0,0.055469]
[1732577661583,0.053465,93524.0,93515.0,0.055469]
[1732577661981,0.053465,93524.0,93515.0,0.053469]
[1732577662180,0.001,93521.0,93515.0,0.053469]
[1732577662785,0.001,93524.0,93523.0,0.053465]
[1732577663782,0.001,93524.0,93515.0,0.001]
[1732577663978,0.053466,93523.0,93517.0,0.053468]
[1732577664385,0.053466,93523.0,93518.0,0.053468]
[1732577664680,0.053466,93523.0,93516.0,0.17712]
[1732577664883,0.02139517,93524.0,93522.0,0.053465]
[1732577665085,0.07486017,93524.0,93517.0,0.230588]
[1732577665487,0.053466,93522.0,93517.0,0.230588]
[1732577665988,0.053466,93522.0,93518.0,0.053468]
[1732577666180,0.053467,93520.0,93519.0,0.053467]
[1732577666378,0.02339517,93524.0,93521.0,0.053466]
[1732577666685,0.053465,93523.0,93521.0,0.053466]
[1732577667393,0.02339517,93524.0,93523.0,0.053465]
[1732577667686,0.2608,93525.0,93523.0,0.053465]
[1732577669289,0.2608,93525.0,93523.0,0.055465]
[1732577669980,0.2608,93525.0,93523.0,0.054465]
[1732577671082,0.314264,93525.0,93523.0,0.054465]
[1732577671693,0.2608,93525.0,93524.0,0.17688]
[1732577671892,0.053457,93537.0,93531.0,0.053461]
[1732577672081,0.3608,93539.0,93534.0,0.053458]
[1732577672287,0.3608,93539.0,93524.0,0.17688]
[1732577672288,0.053461,93531.0,93528.0,0.053462]
[1732577672585,0.3608,93539.0,93524.0,0.17688]
[1732577672586,0.16470901,93538.0,93524.0,0.17688]
[1732577672786,0.053464,93526.0,93524.0,0.230345]
[1732577673788,0.053464,93526.0,93524.0,0.053465]
[1732577674396,0.10982082,93534.0,93522.0,0.17688]
[1732577674691,0.053465,93524.0,93522.0,0.17688]
[1732577674901,0.053465,93524.0,93520.0,0.053467]
[1732577675486,0.02139096,93536.0,93519.0,0.3608]
[1732577675695,0.02139096,93536.0,93525.0,0.053464]
[1732577675696,0.053463,93527.0,93525.0,0.053464]
[1732577676595,0.053465,93524.0,93520.0,0.053467]
[1732577676898,0.02139096,93536.0,93519.0,0.3608]
[1732577676899,0.053467,93520.0,93519.0,0.3608]
[1732577677087,0.47062082,93530.0,93507.0,0.17688]
[1732577677284,0.053474,93508.0,93505.0,0.053475]
[1732577677495,0.3608,93514.0,93500.0,0.1103]
[1732577677688,0.053478,93501.0,93500.0,0.1103]
[1732577678790,0.10982082,93510.0,93500.0,0.1103]
[1732577678791,0.053474,93508.0,93500.0,0.1103]
[1732577679093,0.053474,93507.0,93500.0,0.1113]
[1732577679396,0.0329,93506.0,93500.0,0.1113]
[1732577679793,0.0329,93506.0,93504.0,0.053476]
[1732577680297,0.0329,93506.0,93500.0,0.1113]
[1732577681197,0.0329,93506.0,93505.0,0.053475]
[1732577681583,0.00846182,93507.0,93505.0,0.053475]
[1732577681790,0.3608,93514.0,93513.0,0.053471]
[1732577682090,0.3608,93522.0,93520.0,0.053466]
[1732577682289,0.02139841,93521.0,93520.0,0.053466]
[1732577682594,0.02139841,93521.0,93510.0,0.3608]
[1732577682595,0.00852874,93528.0,93519.0,0.3608]
[1732577682804,0.10982082,93530.0,93517.0,0.053468]
[1732577682991,0.053469,93517.0,93515.0,0.17692]
[1732577683188,0.053474,93509.0,93504.0,0.053476]
[1732577683393,0.001,93506.0,93500.0,0.41934955]
[1732577683595,0.001,93506.0,93500.0,0.163778]
[1732577683596,0.053476,93504.0,93500.0,0.163778]
[1732577684493,0.053477,93503.0,93500.0,0.163778]
[1732577685595,0.053477,93503.0,93500.0,0.164778]
[1732577685893,0.0304,93508.0,93502.0,0.053477]
[1732577686094,0.053474,93507.0,93502.0,0.053477]
[1732577686487,0.053475,93506.0,93502.0,0.053477]
[1732577686689,0.0304,93508.0,93502.0,0.053477]
[1732577686895,0.053476,93505.0,93502.0,0.053477]
[1732577687497,0.053477,93503.0,93502.0,0.053477]
[1732577687699,0.053478,93502.0,93500.0,0.1113]
[1732577688393,0.053478,93502.0,93500.0,0.1103]
[1732577689200,0.053478,93502.0,93500.0,0.1113]
[1732577690800,0.053476,93505.0,93504.0,0.053476]
[1732577691307,0.053477,93502.0,93500.0,0.1113]
[1732577692100,0.053477,93502.0,93500.0,0.1103]
[1732577692706,0.0324,93501.0,93500.0,0.1103]
[1732577692902,0.0324,93501.0,93500.0,0.1113]
[1732577693908,1.01404,93501.0,93480.0,0.25557155]
[1732577694114,1.01404,93501.0,93479.0,0.3635]
[1732577694115,0.053489,93481.0,93479.0,0.3608]
[1732577694417,0.053489,93481.0,93479.0,0.41429]
[1732577694707,0.053486,93486.0,93481.0,0.053489]
[1732577694917,0.3608,93490.0,93479.0,0.3608]
[1732577695098,0.053486,93487.0,93482.0,0.053488]
[1732577695304,0.053486,93487.0,93484.0,0.053487]
[1732577695498,0.053486,93487.0,93485.0,0.053487]
[1732577695916,0.3608,93490.0,93479.0,0.3618]
[1732577696213,0.3608,93490.0,93482.0,0.001]
[1732577696406,0.053488,93483.0,93482.0,0.001]
[1732577697215,0.37098929,93490.0,93483.0,0.053488]
[1732577697519,0.36942928,93490.0,93483.0,0.053488]
[1732577697899,0.053489,93481.0,93479.0,0.3618]
[1732577698416,0.053489,93481.0,93479.0,0.3608]
[1732577699410,0.053489,93481.0,93479.0,0.3618]
[1732577700712,0.053489,93481.0,93479.0,0.3608]
[1732577700916,0.36942928,93490.0,93479.0,0.3618]
[1732577701121,0.36942928,93490.0,93481.0,0.053489]
[1732577701318,0.36942928,93490.0,93479.0,0.3618]
[1732577701319,0.053485,93489.0,93479.0,0.3618]
[1732577701626,0.053489,93482.0,93479.0,0.3618]
[1732577702115,0.36942928,93490.0,93479.0,0.3618]
[1732577702116,0.3608,93480.0,93479.0,0.001]
[1732577702416,0.41429,93480.0,93479.0,0.001]
[1732577702719,0.02140388,93484.0,93479.0,0.001]
[1732577703111,0.02140388,93484.0,93482.0,0.053488]
[1732577704114,0.37090928,93490.0,93489.0,0.053485]
[1732577704115,0.00148,93490.0,93489.0,0.053485]
[1732577704315,0.00866928,93500.0,93489.0,0.17684]
[1732577704515,0.4556556,93507.0,93490.0,0.3608]
[1732577704719,0.4556556,93507.0,93505.0,0.053475]
[1732577704720,0.3608,93507.0,93505.0,0.053475]
[1732577705022,0.00845014,93507.0,93506.0,0.0982]
[1732577705320,0.38220388,93507.0,93506.0,0.0982]
[1732577705614,0.053481,93497.0,93493.0,0.053482]
[1732577705816,0.053481,93497.0,93494.0,0.118782]
[1732577706019,0.3608,93499.0,93494.0,0.118782]
[1732577706020,0.053481,93496.0,93494.0,0.0653]
[1732577706917,0.3608,93499.0,93491.0,0.0332]
[1732577707113,0.10982082,93503.0,93491.0,0.0332]
[1732577707315,0.053479,93499.0,93491.0,0.0332]
[1732577707516,0.05348,93498.0,93494.0,0.053482]
[1732577707819,0.053481,93496.0,93494.0,0.053482]
[1732577708119,0.055481,93496.0,93494.0,0.053482]
[1732577708317,0.053482,93495.0,93491.0,0.0332]
[1732577708916,0.053483,93492.0,93491.0,0.0332]
[1732577709420,0.003,93496.0,93494.0,0.053481]
[1732577709617,0.00876508,93496.0,93494.0,0.053481]
[1732577709821,0.001,93495.0,93494.0,0.053481]
[1732577710319,0.0948556,93513.0,93507.0,0.053474]
[1732577710513,0.0948556,93514.0,93508.0,0.0329]
[1732577710714,0.36228,93516.0,93509.0,0.3608]
[1732577710923,0.0948556,93522.0,93520.0,0.053467]
[1732577711215,0.12676155,93539.0,93522.0,0.053466]
[1732577711415,0.00148,93548.0,93522.0,0.053466]
[1732577711416,0.12688164,93544.0,93538.0,0.3608]
[1732577711618,0.053443,93563.0,93540.0,0.10982082]
[1732577711815,0.15946311,93569.0,93564.0,0.053442]
[1732577711816,0.12688164,93568.0,93564.0,0.053442]
[1732577712020,0.00854119,93567.0,93565.0,0.05352024]
[1732577712207,0.02139517,93576.0,93565.0,0.05352024]
[1732577712409,0.053439,93570.0,93565.0,0.05352024]
[1732577712722,0.053436,93575.0,93568.0,0.053439]
[1732577713025,0.002,93567.0,93565.0,7.924e-05]
[1732577713224,0.053441,93566.0,93565.0,7.924e-05]
[1732577714823,0.850881,93566.0,93565.0,2.4e-07]
[1732577715015,0.885281,93566.0,93565.0,2.4e-07]
[1732577715320,0.053453,93545.0,93544.0,2.4e-07]
[1732577715512,0.591013,93545.0,93544.0,2.4e-07]
[1732577715715,0.911733,93545.0,93544.0,2.4e-07]
[1732577716115,0.591013,93545.0,93544.0,2.4e-07]
[1732577717518,0.591013,93545.0,93544.0,0.00200024]
[1732577717920,0.414253,93545.0,93544.0,0.00200024]
[1732577718126,0.591013,93545.0,93544.0,0.00200024]
[1732577718513,0.59963488,93545.0,93544.0,0.00100024]
[1732577718714,0.42887488,93545.0,93544.0,0.00100024]
[1732577719125,0.42287488,93545.0,93544.0,0.00100024]
[1732577719419,0.43187488,93545.0,93544.0,0.00100024]
[1732577720121,0.43187488,93545.0,93544.0,2.4e-07]
[1732577720322,0.43687488,93545.0,93544.0,2.4e-07]
[1732577721024,0.43187488,93545.0,93544.0,2.4e-07]
[1732577721223,0.42987488,93545.0,93544.0,0.00100024]
[1732577721418,0.016,93545.0,93544.0,0.00100024]
[1732577721817,0.007,93545.0,93544.0,0.00100024]
[1732577722127,0.016,93545.0,93544.0,0.00100024]
[1732577722720,0.009,93545.0,93544.0,0.53856024]
[1732577722919,0.009,93545.0,93544.0,0.85928024]
[1732577723321,0.00841743,93560.0,93544.0,0.85928024]
[1732577723523,0.3608,93564.0,93559.0,0.053444]
[1732577723716,0.3608,93564.0,93553.0,0.3608]
[1732577723918,0.053445,93559.0,93553.0,0.3608]
[1732577724823,0.053445,93559.0,93555.0,0.053446]
[1732577725014,0.3608,93564.0,93557.0,0.053446]
[1732577725325,0.3608,93564.0,93558.0,0.053445]
[1732577725527,0.36950642,93564.0,93558.0,0.053445]
[1732577725718,0.053443,93563.0,93558.0,0.053445]
[1732577726121,0.053443,93563.0,93559.0,0.053444]
[1732577726316,0.37198642,93564.0,93553.0,0.3618]
[1732577726523,0.001,93564.0,93563.0,0.3608]
[1732577726829,0.3608,93592.0,93563.0,0.3608]
[1732577726830,0.053429,93586.0,93583.0,0.05343]
[1732577727024,0.3608,93593.0,93589.0,0.053427]
[1732577727025,0.053427,93591.0,93589.0,0.053427]
[1732577727529,0.37067642,93593.0,93591.0,0.053426]
[1732577727733,0.3608,93593.0,93591.0,0.053426]
[1732577727927,0.3608,93602.0,93595.0,0.053424]